fUST/lending_fUST_20251005
["ID","MTS","AMOUNT","RATE_DAILY","PERIOD"]
[389159997,1759593600295,2000.0,0.00018571,2]
[389159998,1759593600438,500.0,0.00024,120]
[389159999,1759593600789,2000.0,0.00018571,2]
[389160000,1759593601109,664.404,0.00018571,2]
[389160001,1759593601242,500.0,0.00024,120]
[389160003,1759593601987,1805.6115615,0.000187,2]
[389160004,1759593602021,3194.3884385,0.000187,2]
[389160005,1759593602359,500.0,0.00024,120]
[389160006,1759593603166,500.0,0.00024,120]
[389160007,1759593603327,375.47,0.00028767,120]
[389160008,1759593603455,3017.62,0.00028767,120]
[389160009,1759593604498,500.0,0.00024,120]
[389160010,1759593605367,500.0,0.00024,120]
[389160011,1759593606230,164.17,0.00024,120]
[389160014,1759593625103,5000.0,0.000187,2]
[389160015,1759593625448,153.0,0.00024,120]
[389160016,1759593626860,153.0,0.000257,120]
[389160017,1759593628134,608.0,0.00027401,120]
[389160018,1759593628270,153.0,0.000274,120]
[389160020,1759593647908,2716.0,0.00021941,120]
[389160021,1759593648375,2716.0,0.00021931,120]
[389160022,1759593648719,1805.6215615,0.000187,2]
[389160023,1759593648757,3194.3784385,0.000187,2]
[389160024,1759593648880,2716.0,0.00021921,120]
[389160025,1759593649307,2716.0,0.0002339,120]
[389160026,1759593650043,2716.0,0.0002338,120]
[389160027,1759593650801,2716.0,0.0002337,120]
[389160028,1759593651267,2716.0,0.000246,120]
[389160029,1759593651713,2716.0,0.0002459,120]
[389160030,1759593652140,2716.0,0.0002539,120]
[389160031,1759593652621,2720.23,0.0002538,120]
[389160032,1759593668421,400.0,0.00028767,120]
[389160035,1759593671148,5000.0,0.000187,2]
[389160036,1759593672042,500.0,0.00024,120]
[389160037,1759593672837,500.0,0.00024,120]
[389160038,1759593673607,500.0,0.00024,120]
[389160039,1759593674443,500.0,0.00024,120]
[389160040,1759593675341,500.0,0.00024,120]
[389160041,1759593687938,499.66419205,0.00028767,120]
[389160045,1759593693566,1805.6315615,0.000187,2]
[389160046,1759593693598,3194.3684385,0.000187,2]
[389160047,1759593701419,550.0,0.000273,120]
[389160048,1759593708512,236.2156861,0.00018134,2]
[389160049,1759593716824,5000.0,0.000187,2]
[389160050,1759593739732,1569.4258754,0.000187,2]
[389160051,1759593739769,3430.5741246,0.000187,2]
[389160053,1759593753009,153.0,0.00024,120]
[389160054,1759593754583,153.0,0.000257,120]
[389160055,1759593755816,153.0,0.000274,120]
[389160057,1759593761964,5000.0,0.000187,2]
[389160058,1759593767883,150.5,0.0002191,120]
[389160059,1759593768317,150.5,0.000219,120]
[389160060,1759593768767,150.5,0.0002189,120]
[389160061,1759593769208,150.5,0.0002339,120]
[389160062,1759593769639,150.5,0.0002338,120]
[389160063,1759593770087,150.5,0.0002337,120]
[389160064,1759593770528,150.5,0.000246,120]
[389160065,1759593771002,150.5,0.0002459,120]
[389160066,1759593771441,150.5,0.0002539,120]
[389160067,1759593771880,154.6,0.0002538,120]
[389160075,1759593837031,1586.52716236,0.00028767,120]
[389160078,1759593866464,608.742888,0.00016438,2]
[389160079,1759593869125,500.0,0.00027397,120]
[389160084,1759593903337,152.53949729,0.00028767,120]
[389160085,1759593903463,1032.2,0.00028767,120]
[389160086,1759593903623,3007.17,0.00027397,120]
[389160087,1759593903765,815.94904874,0.00028767,120]
[389160089,1759593928466,960.6929874,0.00018082,2]
[389160090,1759593928498,4082.3713794,0.00018082,2]
[389160092,1759593938107,460.0,0.00025915,120]
[389160093,1759593939409,460.0,0.0002721,120]
[389160094,1759593940696,460.0,0.00028571,120]
[389160097,1759593944016,4516.44027175,0.00028767,120]
[389160098,1759593987326,1000.0,0.00028767,120]
[389160102,1759593994003,1000.0,0.00028767,120]
[389160103,1759594000852,1000.0,0.00028767,120]
[389160104,1759594007775,1731.0,0.00021918,120]
[389160105,1759594008217,1731.0,0.00021908,120]
[389160106,1759594008426,1000.0,0.00028767,120]
[389160107,1759594008650,1731.0,0.00021898,120]
[389160108,1759594009107,1731.0,0.0002339,120]
[389160109,1759594009561,1731.0,0.0002338,120]
[389160110,1759594010019,1731.0,0.0002337,120]
[389160111,1759594010502,1731.0,0.000246,120]
[389160114,1759594011029,1731.0,0.0002459,120]
[389160115,1759594011391,1731.0,0.0002539,120]
[389160116,1759594011860,1739.0,0.0002538,120]
[389160117,1759594015477,200.0,0.00025,30]
[389160118,1759594015747,200.0,0.00024708,30]
[389160119,1759594017609,200.0,0.00025,30]
[389160120,1759594017897,200.0,0.00024708,30]
[389160121,1759594020279,200.0,0.00025,30]
[389160122,1759594020551,200.0,0.00024708,30]
[389160126,1759594068713,1000.0,0.00028767,120]
[389160127,1759594076554,1000.0,0.00028767,120]
[389160129,1759594083915,1000.0,0.00028767,120]
[389160130,1759594089625,5000.0,0.00018799,2]
[389160131,1759594092323,1000.0,0.00028767,120]
[389160132,1759594100887,1000.0,0.00028767,120]
[389160133,1759594109648,1000.0,0.00028767,120]
[389160135,1759594111862,5000.0,0.00018799,2]
[389160136,1759594116965,1000.0,0.00028767,120]
[389160138,1759594124745,1000.0,0.00028767,120]
[389160139,1759594130587,0.01,0.00018469,2]
[389160140,1759594130616,541.2790073,0.00018469,2]
[389160141,1759594136489,1000.0,0.00028767,120]
[389160144,1759594151745,1000.0,0.00028767,120]
[389160156,1759594160349,1000.0,0.00028767,120]
[389160159,1759594170556,1000.0,0.00028767,120]
[389160161,1759594178852,-150.0,0.000188,2]
[389160162,1759594178881,-776.4472462,0.00018886,2]
[389160163,1759594178906,-400.0,0.0001898,2]
[389160164,1759594178933,-300.65,0.0001898,3]
[389160165,1759594178959,-150.32,0.0001898,3]
[389160166,1759594178985,-451.01,0.0001898,3]
[389160167,1759594179011,-471.37,0.0001898,3]
[389160168,1759594179037,-235.68,0.0001898,3]
[389160169,1759594179065,-707.07,0.0001898,3]
[389160170,1759594179089,-192.4,0.0001898,2]
[389160171,1759594179114,-192.4,0.0001898,2]
[389160172,1759594179139,-192.4,0.0001898,2]
[389160173,1759594179164,-1200.0,0.00018986,2]
[389160174,1759594179188,-500.0,0.00018986,2]
[389160175,1759594179213,-500.0,0.00018986,2]
[389160176,1759594179243,-500.0,0.00018986,2]
[389160177,1759594179268,-500.0,0.00018986,2]
[389160178,1759594179293,-614.51318185,0.00018986,2]
[389160179,1759594179318,-200.0,0.00018986,2]
[389160180,1759594179343,-500.0,0.00018986,2]
[389160181,1759594179367,-500.0,0.00018986,2]
[389160182,1759594179392,-502.81412001,0.00018986,2]
[389160183,1759594179418,-500.0,0.00018986,2]
[389160184,1759594179446,-500.0,0.00018986,2]
[389160185,1759594179471,-500.0,0.00018986,2]
[389160186,1759594179495,-500.0,0.00018986,2]
[389160187,1759594179519,-500.0,0.00018986,2]
[389160188,1759594179545,-500.0,0.00018986,2]
[389160189,1759594179573,-500.0,0.00018986,2]
[389160190,1759594179598,-500.0,0.00018986,2]
[389160191,1759594179626,-500.0,0.00018986,2]
[389160192,1759594179653,-500.0,0.00018986,2]
[389160193,1759594179683,-500.0,0.00018986,2]
[389160194,1759594179710,-500.0,0.00018986,2]
[389160195,1759594179738,-454.22865632,0.00018986,2]
[389160196,1759594179763,-500.0,0.00018986,2]
[389160197,1759594179788,-500.0,0.00018986,2]
[389160198,1759594179814,-500.0,0.00018986,2]
[389160199,1759594179839,-500.0,0.00018986,2]
[389160200,1759594180036,-328.76449788,0.00018986,2]
[389160201,1759594180065,-500.0,0.00018986,2]
[389160202,1759594180091,-500.0,0.00018986,2]
[389160203,1759594180117,-500.0,0.00018986,2]
[389160204,1759594180148,-500.0,0.00018986,2]
[389160205,1759594180174,-500.0,0.00018986,2]
[389160206,1759594180199,-478.94661314,0.00018986,2]
[389160207,1759594180225,-500.0,0.00018986,2]
[389160208,1759594180251,-500.0,0.00018986,2]
[389160209,1759594180280,-500.0,0.00018986,2]
[389160210,1759594180308,-500.0,0.00018986,2]
[389160211,1759594180334,-500.0,0.00018986,2]
[389160212,1759594180359,-533.72570886,0.00018986,2]
[389160213,1759594180384,-500.0,0.00018986,2]
[389160214,1759594180408,-500.0,0.00018986,2]
[389160215,1759594180433,-247.93252178,0.00018986,2]
[389160216,1759594180458,-500.0,0.00018986,2]
[389160217,1759594180482,-500.0,0.00018986,2]
[389160218,1759594180508,-500.0,0.00018986,2]
[389160219,1759594180534,-532.1728282,0.00018986,2]
[389160220,1759594180559,-500.0,0.00018986,2]
[389160221,1759594180584,-500.0,0.00018986,2]
[389160222,1759594180608,-500.0,0.00018986,2]
[389160223,1759594180633,-500.0,0.00018986,2]
[389160224,1759594180658,-500.0,0.00018986,2]
[389160225,1759594180682,-500.0,0.00018986,2]
[389160226,1759594180707,-500.0,0.00018986,2]
[389160227,1759594180732,-396.86450828,0.00018986,2]
[389160228,1759594180759,-500.0,0.00018986,2]
[389160229,1759594180784,-500.0,0.00018986,2]
[389160230,1759594180809,-351.5803114,0.00018986,2]
[389160231,1759594180839,-499.99999999,0.00018986,2]
[389160232,1759594180867,-219.88295701,0.00018986,2]
[389160233,1759594180894,-500.0,0.00018986,2]
[389160234,1759594180918,-500.0,0.00018986,2]
[389160235,1759594180944,-500.0,0.00018986,2]
[389160236,1759594180970,-500.0,0.00018986,2]
[389160237,1759594180995,-500.0,0.00018986,2]
[389160238,1759594181019,-500.0,0.00018986,2]
[389160239,1759594181047,-500.0,0.00018986,2]
[389160240,1759594181073,-500.0,0.00018986,2]
[389160241,1759594181098,-500.0,0.00018986,2]
[389160242,1759594181124,-303.53137971,0.00018986,2]
[389160243,1759594181149,-500.0,0.00018986,2]
[389160244,1759594181175,-500.0,0.00018986,2]
[389160245,1759594181200,-500.0,0.00018986,2]
[389160246,1759594181225,-500.0,0.00018986,2]
[389160247,1759594181253,-500.0,0.00018986,2]
[389160248,1759594181280,-500.0,0.00018986,2]
[389160249,1759594181306,-500.0,0.00018986,2]
[389160250,1759594181331,-500.0,0.00018986,2]
[389160251,1759594181358,-500.0,0.00018986,2]
[389160252,1759594181383,-500.0,0.00018986,2]
[389160253,1759594181410,-500.0,0.00018986,2]
[389160254,1759594181436,-500.0,0.00018986,2]
[389160255,1759594181462,-383.80318403,0.00018986,2]
[389160256,1759594181489,-285.1099922,0.00018986,2]
[389160257,1759594181515,-500.0,0.00018986,2]
[389160258,1759594181543,-500.0,0.00018986,2]
[389160259,1759594181569,-500.0,0.00018986,2]
[389160260,1759594181595,-500.0,0.00018986,2]
[389160261,1759594181621,-500.0,0.00018986,2]
[389160262,1759594181648,-500.0,0.00018986,2]
[389160263,1759594181673,-500.0,0.00018986,2]
[389160264,1759594181700,-500.0,0.00018986,2]
[389160265,1759594181727,-500.0,0.00018986,2]
[389160266,1759594181755,-500.0,0.00018986,2]
[389160267,1759594181781,-80.2527538,0.00018986,2]
[389160270,1759594192317,354.58863,0.00028767,120]
[389160271,1759594193180,2430.46,0.00028767,120]
[389160313,1759594232175,-300.0,0.00018986,2]
[389160315,1759594232185,-419.7472462,0.00018986,2]
[389160317,1759594232194,-500.0,0.00018986,2]
[389160319,1759594232204,-500.0,0.00018986,2]
[389160321,1759594232213,-530.43375342,0.00018986,2]
[389160323,1759594232223,-190.71545333,0.00018986,2]
[389160325,1759594232232,-2924.53325874,0.0001899,2]
[389160327,1759594232243,-255.57243791,0.0001899,2]
[389160330,1759594232256,-983.96121195,0.0001899,2]
[389160332,1759594232267,-95835.9330914,0.0001899,2]
[389160334,1759594232277,-400.0,0.0001899,2]
[389160336,1759594232286,-400.0,0.00019076,2]
[389160338,1759594232295,-201.91808236,0.00019078,2]
[389160340,1759594232304,-500.0,0.00019173,2]
[389160343,1759594232314,-500.0,0.00019173,2]
[389160346,1759594232323,-500.0,0.00019173,2]
[389160349,1759594232332,-500.0,0.00019173,2]
[389160352,1759594232342,-500.0,0.00019173,2]
[389160355,1759594232351,-500.0,0.00019173,2]
[389160358,1759594232360,-634.46309992,0.00019173,2]
[389160360,1759594232369,-50000.0,0.00019173,2]
[389160362,1759594232379,-548.21,0.00019178,2]
[389160364,1759594232388,-440.89228745,0.00019178,2]
[389160366,1759594232397,-500.0,0.00019178,2]
[389160367,1759594232406,-500.0,0.00019178,2]
[389160369,1759594232415,-500.0,0.00019178,2]
[389160371,1759594232426,-500.0,0.00019178,2]
[389160373,1759594232435,-500.0,0.00019178,2]
[389160375,1759594232444,-500.0,0.00019178,2]
[389160377,1759594232454,-500.0,0.00019178,2]
[389160380,1759594232464,-500.0,0.00019178,2]
[389160382,1759594232475,-500.0,0.00019178,2]
[389160383,1759594232484,-500.0,0.00019178,2]
[389160385,1759594232493,-645.18,0.00019178,2]
[389160387,1759594232502,-960.3,0.00019178,2]
[389160389,1759594232511,-500.0,0.00019178,2]
[389160391,1759594232520,-422.9889412,0.00019178,2]
[389160393,1759594232530,-500.0,0.00019178,2]
[389160395,1759594232539,-500.0,0.00019178,2]
[389160397,1759594232548,-500.0,0.00019178,2]
[389160399,1759594232558,-199.20554241,0.00019178,2]
[389160401,1759594232567,-500.0,0.00019178,2]
[389160403,1759594232577,-500.0,0.00019178,2]
[389160405,1759594232586,-500.0,0.00019178,2]
[389160407,1759594232600,-500.0,0.00019178,2]
[389160409,1759594232609,-500.0,0.00019178,2]
[389160411,1759594232619,-500.0,0.00019178,2]
[389160413,1759594232629,-500.0,0.00019178,2]
[389160415,1759594232638,-500.0,0.00019178,2]
[389160417,1759594232647,-500.0,0.00019178,2]
[389160419,1759594232656,-500.0,0.00019178,2]
[389160421,1759594232665,-500.0,0.00019178,2]
[389160423,1759594232675,-500.0,0.00019178,2]
[389160425,1759594232684,-802.67,0.00019178,2]
[389160427,1759594232694,-658.12,0.00019178,2]
[389160429,1759594232703,-500.0,0.00019178,2]
[389160431,1759594232712,-595.25,0.00019178,2]
[389160432,1759594232721,-500.0,0.00019178,2]
[389160434,1759594232731,-500.0,0.00019178,2]
[389160435,1759594232740,-500.0,0.00019178,2]
[389160436,1759594232749,-500.0,0.00019178,2]
[389160437,1759594232759,-500.0,0.00019178,2]
[389160438,1759594232769,-500.0,0.00019178,2]
[389160440,1759594232778,-500.0,0.00019178,2]
[389160441,1759594232788,-826.63,0.00019178,2]
[389160442,1759594232797,-500.0,0.00019178,2]
[389160443,1759594232807,-500.0,0.00019178,2]
[389160445,1759594232816,-500.0,0.00019178,2]
[389160447,1759594232825,-500.0,0.00019178,2]
[389160449,1759594232834,-620.8,0.00019178,2]
[389160451,1759594232843,-575.21,0.00019178,2]
[389160453,1759594232852,-500.0,0.00019178,2]
[389160455,1759594232861,-292.75788564,0.00019178,2]
[389160457,1759594232874,-252.71211436,0.00019178,2]
[389160459,1759594232884,-500.0,0.00019178,2]
[389160461,1759594232900,-500.0,0.00019178,2]
[389160463,1759594232909,-500.0,0.00019178,2]
[389160465,1759594232919,-500.0,0.00019178,2]
[389160467,1759594232928,-500.0,0.00019178,2]
[389160470,1759594232943,-500.0,0.00019178,2]
[389160471,1759594232952,-500.0,0.00019178,2]
[389160474,1759594232962,-557.16,0.00019178,2]
[389160476,1759594232971,-500.0,0.00019178,2]
[389160477,1759594232981,-500.0,0.00019178,2]
[389160479,1759594232991,-500.0,0.00019178,2]
[389160481,1759594233000,-500.0,0.00019178,2]
[389160483,1759594233009,-500.0,0.00019178,2]
[389160485,1759594233018,-500.0,0.00019178,2]
[389160488,1759594233028,-500.0,0.00019178,2]
[389160490,1759594233037,-500.0,0.00019178,2]
[389160492,1759594233047,-500.0,0.00019178,2]
[389160493,1759594233056,-822.65989473,0.00019178,2]
[389160495,1759594233069,-786.81010527,0.00019178,2]
[389160497,1759594233079,-500.0,0.00019178,2]
[389160499,1759594233095,-472.34014194,0.00019178,2]
[389160501,1759594233108,-993.63,0.00019178,2]
[389160503,1759594233117,-500.0,0.00019178,2]
[389160505,1759594233128,-500.0,0.00019178,2]
[389160506,1759594233138,-500.0,0.00019178,2]
[389160507,1759594233147,-500.0,0.00019178,2]
[389160508,1759594233156,-500.0,0.00019178,2]
[389160509,1759594233169,-425.58325026,0.00019178,2]
[389160531,1759594238104,-150.0,0.00018986,2]
[389160532,1759594238113,-213.75901029,0.00018989,2]
[389160533,1759594238123,-511.01007617,0.00018989,2]
[389160534,1759594238135,-74.41674974,0.00019178,2]
[389160535,1759594238145,-500.0,0.00019178,2]
[389160536,1759594238154,-500.0,0.00019178,2]
[389160537,1759594238164,-528.39763271,0.00019178,2]
[389160538,1759594238174,-382.59827729,0.00019178,2]
[389160539,1759594238183,-500.0,0.00019178,2]
[389160540,1759594238192,-500.0,0.00019178,2]
[389160541,1759594238203,-500.0,0.00019178,2]
[389160542,1759594238213,-500.0,0.00019178,2]
[389160543,1759594238222,-500.0,0.00019178,2]
[389160544,1759594238232,-175.71210209,0.00019178,2]
[389160545,1759594238242,-500.0,0.00019178,2]
[389160546,1759594238252,-443.15683303,0.00019178,2]
[389160547,1759594238262,-500.0,0.00019178,2]
[389160548,1759594238272,-500.0,0.00019178,2]
[389160549,1759594238282,-500.0,0.00019178,2]
[389160550,1759594238292,-500.0,0.00019178,2]
[389160551,1759594238303,-500.0,0.00019178,2]
[389160552,1759594238313,-500.0,0.00019178,2]
[389160553,1759594238324,-500.0,0.00019178,2]
[389160554,1759594238335,-500.0,0.00019178,2]
[389160555,1759594238346,-500.0,0.00019178,2]
[389160556,1759594238356,-500.0,0.00019178,2]
[389160557,1759594238366,-846.86,0.00019178,2]
[389160558,1759594238377,-500.0,0.00019178,2]
[389160559,1759594238387,-500.0,0.00019178,2]
[389160560,1759594238397,-500.0,0.00019178,2]
[389160561,1759594238407,-500.0,0.00019178,2]
[389160562,1759594238417,-500.0,0.00019178,2]
[389160563,1759594238428,-500.0,0.00019178,2]
[389160564,1759594238437,-500.0,0.00019178,2]
[389160565,1759594238447,-520.83,0.00019178,2]
[389160566,1759594238456,-500.0,0.00019178,2]
[389160567,1759594238466,-500.0,0.00019178,2]
[389160568,1759594238481,-551.27391683,0.00019178,2]
[389160569,1759594238491,-500.0,0.00019178,2]
[389160570,1759594238501,-2187.44,0.00019178,2]
[389160571,1759594238511,-500.0,0.00019178,2]
[389160572,1759594238521,-500.0,0.00019178,2]
[389160573,1759594238531,-500.0,0.00019178,2]
[389160574,1759594238541,-500.0,0.00019178,2]
[389160575,1759594238551,-500.0,0.00019178,2]
[389160576,1759594238561,-657.22,0.00019178,2]
[389160577,1759594238571,-500.0,0.00019178,2]
[389160578,1759594238581,-500.0,0.00019178,2]
[389160579,1759594238590,-500.0,0.00019178,2]
[389160580,1759594238600,-500.0,0.00019178,2]
[389160581,1759594238609,-500.0,0.00019178,2]
[389160582,1759594238618,-500.0,0.00019178,2]
[389160583,1759594238628,-500.0,0.00019178,2]
[389160584,1759594238638,-500.0,0.00019178,2]
[389160585,1759594238648,-201.11231128,0.00019178,2]
[389160586,1759594238657,-500.0,0.00019178,2]
[389160587,1759594238667,-500.0,0.00019178,2]
[389160588,1759594238678,-500.0,0.00019178,2]
[389160589,1759594238688,-500.0,0.00019178,2]
[389160590,1759594238698,-500.0,0.00019178,2]
[389160591,1759594238708,-500.0,0.00019178,2]
[389160592,1759594238718,-326.85350048,0.00019178,2]
[389160593,1759594238727,-500.0,0.00019178,2]
[389160594,1759594238738,-500.0,0.00019178,2]
[389160595,1759594238748,-422.56950131,0.00019178,2]
[389160596,1759594238757,-500.0,0.00019178,2]
[389160597,1759594238767,-500.0,0.00019178,2]
[389160598,1759594238776,-500.0,0.00019178,2]
[389160599,1759594238786,-500.0,0.00019178,2]
[389160600,1759594238797,-500.0,0.00019178,2]
[389160601,1759594238806,-500.0,0.00019178,2]
[389160602,1759594238816,-500.0,0.00019178,2]
[389160603,1759594238826,-500.0,0.00019178,2]
[389160604,1759594238835,-388.77467103,0.00019178,2]
[389160605,1759594238845,-585.06,0.00019178,2]
[389160606,1759594238854,-500.0,0.00019178,2]
[389160607,1759594238864,-500.0,0.00019178,2]
[389160608,1759594238874,-500.0,0.00019178,2]
[389160609,1759594238883,-500.0,0.00019178,2]
[389160610,1759594238893,-500.0,0.00019178,2]
[389160611,1759594238903,-808.08,0.00019178,2]
[389160612,1759594238912,-2827.56,0.00019178,2]
[389160613,1759594238922,-500.0,0.00019178,2]
[389160614,1759594238931,-500.0,0.00019178,2]
[389160615,1759594238942,-500.0,0.00019178,2]
[389160616,1759594238953,-528.8,0.00019178,2]
[389160617,1759594238964,-500.0,0.00019178,2]
[389160618,1759594238974,-500.0,0.00019178,2]
[389160619,1759594238984,-500.0,0.00019178,2]
[389160620,1759594238994,-500.0,0.00019178,2]
[389160621,1759594239004,-472.07446104,0.00019178,2]
[389160622,1759594239013,-500.0,0.00019178,2]
[389160623,1759594239023,-500.0,0.00019178,2]
[389160624,1759594239033,-500.0,0.00019178,2]
[389160625,1759594239042,-500.0,0.00019178,2]
[389160626,1759594239053,-500.0,0.00019178,2]
[389160627,1759594239063,-965.77,0.00019178,2]
[389160628,1759594239072,-500.0,0.00019178,2]
[389160629,1759594239082,-500.0,0.00019178,2]
[389160630,1759594239096,-2556.96,0.00019178,2]
[389160631,1759594239106,-545.69,0.00019178,2]
[389160632,1759594239116,-500.0,0.00019178,2]
[389160633,1759594239126,-500.0,0.00019178,2]
[389160634,1759594239136,-1148.07,0.00019178,2]
[389160635,1759594239146,-309.2726385,0.00019178,2]
[389160636,1759594239156,-500.0,0.00019178,2]
[389160637,1759594239166,-930.62,0.00019178,2]
[389160638,1759594239177,-937.5,0.00019178,2]
[389160639,1759594239187,-500.0,0.00019178,2]
[389160640,1759594239197,-500.0,0.00019178,2]
[389160641,1759594239208,-1548.55,0.00019178,2]
[389160642,1759594239218,-500.0,0.00019178,2]
[389160643,1759594239228,-500.0,0.00019178,2]
[389160644,1759594239238,-500.0,0.00019178,2]
[389160645,1759594239249,-500.0,0.00019178,2]
[389160646,1759594239259,-886.37,0.00019178,2]
[389160647,1759594239268,-500.0,0.00019178,2]
[389160648,1759594239279,-500.0,0.00019178,2]
[389160649,1759594239288,-521.49,0.00019178,2]
[389160650,1759594239298,-500.0,0.00019178,2]
[389160651,1759594239307,-500.0,0.00019178,2]
[389160652,1759594239317,-556.69,0.00019178,2]
[389160653,1759594239326,-3236.34,0.00019178,2]
[389160654,1759594239336,-541.42048293,0.00019178,2]
[389160655,1759594239346,-500.0,0.00019178,2]
[389160656,1759594239356,-500.0,0.00019178,2]
[389160657,1759594239366,-500.0,0.00019178,2]
[389160658,1759594239376,-500.0,0.00019178,2]
[389160659,1759594239386,-500.0,0.00019178,2]
[389160660,1759594239396,-2126.75,0.00019178,2]
[389160661,1759594239406,-500.0,0.00019178,2]
[389160662,1759594239416,-500.0,0.00019178,2]
[389160663,1759594239426,-1368.15,0.00019178,2]
[389160664,1759594239436,-500.0,0.00019178,2]
[389160665,1759594239446,-2919.67,0.00019178,2]
[389160666,1759594239455,-7184.49,0.00019178,2]
[389160667,1759594239465,-500.0,0.00019178,2]
[389160668,1759594239474,-500.0,0.00019178,2]
[389160669,1759594239483,-500.0,0.00019178,2]
[389160670,1759594239493,-529.15,0.00019178,2]
[389160671,1759594239502,-2145.97,0.00019178,2]
[389160672,1759594239512,-1648.89,0.00019178,2]
[389160673,1759594239521,-500.0,0.00019178,2]
[389160674,1759594239531,-500.0,0.00019178,2]
[389160677,1759594239540,-500.0,0.00019178,2]
[389160681,1759594239552,-777.83,0.00019178,2]
[389160682,1759594239562,-771.31,0.00019178,2]
[389160683,1759594239572,-1211.96,0.00019178,2]
[389160684,1759594239581,-500.0,0.00019178,2]
[389160685,1759594239591,-500.0,0.00019178,2]
[389160686,1759594239600,-543.31,0.00019178,2]
[389160687,1759594239610,-500.0,0.00019178,2]
[389160688,1759594239620,-500.0,0.00019178,2]
[389160689,1759594239629,-581.23,0.00019178,2]
[389160690,1759594239638,-500.0,0.00019178,2]
[389160691,1759594239648,-3085.44,0.00019178,2]
[389160692,1759594239657,-2348.19,0.00019178,2]
[389160693,1759594239667,-500.0,0.00019178,2]
[389160694,1759594239677,-2155.15,0.00019178,2]
[389160695,1759594239687,-500.0,0.00019178,2]
[389160696,1759594239697,-9923.48,0.00019178,2]
[389160697,1759594239706,-500.0,0.00019178,2]
[389160698,1759594239716,-3552.06,0.00019178,2]
[389160699,1759594239725,-3319.92,0.00019178,2]
[389160700,1759594239735,-500.0,0.00019178,2]
[389160701,1759594239744,-500.0,0.00019178,2]
[389160702,1759594239754,-500.0,0.00019178,2]
[389160703,1759594239764,-10724.72,0.00019178,2]
[389160704,1759594239773,-3895.61,0.00019178,2]
[389160705,1759594239782,-500.0,0.00019178,2]
[389160706,1759594239792,-500.0,0.00019178,2]
[389160707,1759594239801,-500.0,0.00019178,2]
[389160708,1759594239811,-3903.44,0.00019178,2]
[389160709,1759594239820,-500.0,0.00019178,2]
[389160710,1759594239829,-500.0,0.00019178,2]
[389160711,1759594239839,-500.0,0.00019178,2]
[389160712,1759594239848,-5695.0,0.00019178,2]
[389160713,1759594239858,-500.0,0.00019178,2]
[389160714,1759594239867,-500.0,0.00019178,2]
[389160715,1759594239876,-5737.0,0.00019178,2]